bitfinex/quotes_SOLUSD_20241231
["timestamp","ask_amount","ask_price","bid_price","bid_amount"]
[1735608162810,23.776884,190.28,190.17,20.0]
[1735608163015,23.776884,190.28,190.17,36.63076549]
[1735608164210,23.776884,190.26,190.15,16.63076549]
[1735608164525,1.9893,190.23,190.13,16.63076549]
[1735608164823,23.776884,190.22,190.13,16.63076549]
[1735608165105,23.776884,190.22,190.12,16.63076549]
[1735608165292,23.776884,190.22,190.09,17.41953874]
[1735608165503,23.776884,190.22,190.09,16.63076549]
[1735608165702,23.776884,190.2,190.09,16.63076549]
[1735608166608,23.776884,190.18,190.08,16.63076549]
[1735608168417,1.9893,190.17,190.08,16.63076549]
[1735608170416,1.9893,190.17,190.09,16.63076549]
[1735608172114,1.9893,190.17,190.07,16.63076549]
[1735608172312,1.9893,190.17,190.08,16.63076549]
[1735608172518,1.9893,190.17,190.09,16.63076549]
[1735608175522,1.9893,190.17,190.08,16.63076549]
[1735608175708,1.9893,190.17,190.09,16.63076549]
[1735608176818,23.776884,190.16,190.07,16.63076549]
[1735608177023,23.776884,190.16,190.06,16.63076549]
[1735608177216,23.776884,190.16,190.07,16.63076549]
[1735608178201,23.776884,190.16,190.07,10.66094541]
[1735608179505,20.0,190.16,190.08,10.66094541]
[1735608179923,1.9893,190.17,190.11,10.66094541]
[1735608180127,1.9893,190.17,190.12,10.66094541]
[1735608180427,1.9893,190.17,190.09,0.78887865]
[1735608180428,1.9893,190.17,190.13,10.66094541]
[1735608180721,1.9893,190.17,190.09,0.78887865]
[1735608180722,1.9893,190.17,190.12,10.66094541]
[1735608180922,1.9893,190.17,190.09,30.66094541]
[1735608181125,23.776884,190.16,190.07,10.66094541]
[1735608181306,23.776884,190.16,190.05,10.66094541]
[1735608181701,20.0,190.14,190.04,10.66094541]
[1735608181938,6.5725,190.12,190.03,10.66094541]
[1735608182120,2.0182,190.11,190.02,10.66094541]
[1735608182330,2.0182,190.11,190.01,11.4500335]
[1735608182626,2.0182,190.11,190.03,10.66094541]
[1735608183212,2.0182,190.11,190.05,10.66094541]
[1735608184335,2.0182,190.11,190.05,16.66065037]
[1735608184830,2.0182,190.11,190.06,16.66065037]
[1735608186132,2.0182,190.11,190.05,16.66065037]
[1735608186312,2.0182,190.11,190.06,16.66065037]
[1735608187032,2.0182,190.11,190.05,16.66065037]
[1735608187205,2.0182,190.11,190.04,16.66065037]
[1735608187408,2.0182,190.11,190.02,16.66065037]
[1735608188310,2.0182,190.11,190.03,16.66065037]
[1735608188508,2.0182,190.11,190.06,16.66065037]
[1735608189216,8.1067,190.22,190.09,16.66065037]
[1735608189604,8.1067,190.22,190.03,0.78904553]
[1735608189605,23.776884,190.21,190.07,16.66065037]
[1735608189806,20.0,190.15,190.07,16.66065037]
[1735608190025,23.776884,190.14,190.05,16.66065037]
[1735608190209,2.0419,190.13,190.03,0.78904553]
[1735608190410,6.0648,190.11,190.03,16.66065037]
[1735608191436,23.776884,190.1,190.03,16.66065037]
[1735608191624,23.776884,190.1,190.02,16.66065037]
[1735608191812,6.0648,190.11,190.02,16.66065037]
[1735608192135,6.0648,190.11,190.03,16.66065037]
[1735608192518,6.0648,190.11,190.05,16.66065037]
[1735608192925,6.0648,190.11,190.06,16.66065037]
[1735608193539,2.0419,190.13,190.07,16.66065037]
[1735608194039,2.0419,190.13,190.05,16.66065037]
[1735608194338,2.0419,190.13,190.07,16.66065037]
[1735608195037,2.0419,190.13,190.06,16.66065037]
[1735608195243,2.0419,190.13,190.05,16.66065037]
[1735608196037,2.0419,190.13,190.04,13.94369319]
[1735608196038,2.0419,190.13,190.04,17.44974356]
[1735608197136,2.0419,190.13,190.05,16.66065037]
[1735608199026,2.0419,190.13,190.04,36.66065037]
[1735608199643,2.0419,190.13,190.05,16.66065037]
[1735608200233,22.0419,190.13,190.04,16.66065037]
[1735608200435,23.776884,190.12,190.01,0.78904722]
[1735608200742,23.776884,190.12,190.03,16.66065037]
[1735608201441,23.776884,190.12,190.02,16.66065037]
[1735608205424,31.905284,190.05,189.85,8.26034383]
[1735608205735,20.0,189.97,189.86,16.66065037]
[1735608205921,23.776884,189.96,189.86,16.66065037]
[1735608206333,23.776884,189.96,189.86,9.61540981]
[1735608206928,23.776884,189.96,189.85,9.61540981]
[1735608207737,23.776884,189.96,189.84,9.61540981]
[1735608208123,23.776884,189.96,189.83,9.61540981]
[1735608208442,43.776884,189.92,189.81,15.02825116]
[1735608208623,43.776884,189.92,189.78,17.63259969]
[1735608208824,43.776884,189.92,189.8,15.02825116]
[1735608211930,43.776884,189.92,189.79,15.02825116]
[1735608212135,43.776884,189.92,189.78,28.99085085]
[1735608212442,20.0,189.92,189.8,15.02825116]
[1735608212843,20.0,189.91,189.8,15.02825116]
[1735608213339,23.776884,189.94,189.83,15.02825116]
[1735608213549,23.776884,189.94,189.82,15.02825116]
[1735608214457,23.776884,189.94,189.81,15.02825116]
[1735608215140,20.0,189.91,189.81,15.02825116]
[1735608216647,23.776884,189.94,189.81,15.02825116]
[1735608217254,20.0,189.91,189.8,15.81824264]
[1735608217831,23.776884,189.94,189.81,15.02825116]
[1735608220244,8.1284,189.95,189.83,15.02825116]
[1735608221556,8.1284,189.95,189.84,0.78982207]
[1735608222240,8.1284,189.95,189.82,15.02825116]
[1735608223435,8.1284,189.95,189.84,15.02825116]
[1735608223636,8.1284,189.95,189.85,15.02825116]
[1735608224360,8.1284,189.95,189.84,15.02825116]
[1735608225254,8.1284,189.95,189.83,13.95945886]
[1735608225439,8.1284,189.95,189.83,13.1696]
[1735608225640,8.1284,189.95,189.83,28.19785116]
[1735608226454,8.1284,189.95,189.83,13.1696]
[1735608226657,8.1284,189.95,189.83,28.19785116]
[1735608227158,8.1284,189.95,189.87,15.02825116]
[1735608227367,8.1284,189.95,189.86,0.78967953]
[1735608227538,8.1284,189.95,189.83,15.02825116]
[1735608227938,23.776884,189.94,189.84,20.0]
[1735608228144,23.776884,189.94,189.83,35.02825116]
[1735608228349,23.776884,189.94,189.83,20.0]
[1735608228539,20.0,189.87,189.63,8.26034383]
[1735608228740,23.776884,189.8,189.63,8.26034383]
[1735608228943,6.032,189.77,189.64,15.02825116]
[1735608229152,2.1344,189.75,189.64,15.02825116]
[1735608229355,0.78988483,189.74,189.63,23.28859499]
[1735608229746,2.1344,189.75,189.64,15.02825116]
[1735608230351,2.1344,189.75,189.65,20.0]
[1735608230942,2.1344,189.75,189.64,0.79062919]
[1735608231349,0.78988483,189.74,189.66,20.0]
[1735608231546,0.78988483,189.74,189.64,15.81888035]
[1735608231735,2.1344,189.75,189.65,15.02825116]
[1735608231940,2.1344,189.75,189.66,0.79056449]
[1735608234365,2.1344,189.75,189.65,20.0]
[1735608234662,2.1344,189.75,189.65,35.02825116]
[1735608235043,2.1344,189.75,189.66,15.02825116]
[1735608235764,2.1344,189.75,189.68,35.02825116]
[1735608235966,2.1344,189.75,189.69,15.02825116]
[1735608236868,2.1344,189.75,189.69,15.81869595]
[1735608237864,6.032,189.77,189.72,20.0]
[1735608238071,2.0629,189.8,189.73,15.02825116]
[1735608238367,2.0629,189.8,189.72,15.02825116]
[1735608238585,2.0629,189.8,189.71,15.02825116]
[1735608239766,2.0629,189.8,189.7,28.99706946]
[1735608240462,2.0629,189.8,189.71,15.02825116]
[1735608240760,2.0629,189.8,189.72,15.02825116]
[1735608240967,2.0629,189.8,189.71,15.02825116]
[1735608242075,2.0629,189.8,189.72,15.02825116]
[1735608244270,2.0629,189.8,189.72,15.81857464]
[1735608244466,2.0629,189.8,189.72,0.79032348]
[1735608244467,23.776884,189.76,189.72,0.79032348]
[1735608244647,2.0629,189.72,189.51,15.84]
[1735608244853,23.776884,189.7,189.56,15.02825116]
[1735608245161,0.98860825,189.69,189.57,0.3970082]
[1735608246368,2.0629,189.72,189.62,15.02825116]
[1735608246660,2.0629,189.72,189.63,15.42473794]
[1735608247066,3.05124448,189.72,189.62,15.02825116]
[1735608247590,2.0629,189.72,189.62,15.02825116]
[1735608247954,2.0629,189.72,189.64,15.02825116]
[1735608248279,2.0629,189.72,189.64,15.42468988]
[1735608248851,2.0629,189.72,189.64,0.39643872]
[1735608249471,2.0629,189.72,189.66,15.02825116]
[1735608249977,2.0629,189.72,189.65,15.02825116]
[1735608250364,6.179,189.73,189.66,15.42438584]
[1735608250564,6.179,189.73,189.67,15.02825116]
[1735608250881,6.179,189.73,189.68,0.39597858]
[1735608251585,8.6103,189.77,189.68,28.60422974]
[1735608251768,8.6103,189.77,189.7,15.02825116]
[1735608251969,6.4603,189.77,189.71,15.42387844]
[1735608252173,6.4603,189.77,189.72,15.02825116]
[1735608252365,8.6103,189.82,189.73,15.42366728]
[1735608252886,8.6103,189.82,189.73,0.39541612]
[1735608253780,8.6103,189.82,189.74,15.02825116]
[1735608254172,8.6103,189.82,189.73,0.39524259]
[1735608254763,8.6103,189.82,189.73,35.42349375]
[1735608255385,8.6103,189.82,189.73,20.39524259]
[1735608255888,8.6103,189.82,189.73,35.42349375]
[1735608256185,8.6103,189.82,189.75,20.0]
[1735608257486,8.6103,189.82,189.76,20.0]
[1735608258176,6.4603,189.82,189.77,15.02825116]
[1735608258381,6.4603,189.82,189.78,0.39483033]
[1735608259173,8.6103,189.87,189.79,15.02825116]
[1735608260097,8.6103,189.87,189.8,0.39462873]
[1735608260562,8.6103,189.87,189.81,20.0]
[1735608262089,8.6103,189.87,189.79,20.0]
[1735608263283,8.6103,189.87,189.78,20.0]
[1735608263488,8.6103,189.87,189.81,20.0]
[1735608264591,8.6103,189.87,189.8,35.42286591]
[1735608265164,6.2906,189.91,189.83,20.0]
[1735608265364,6.2906,189.91,189.85,15.02825116]
[1735608265588,6.2906,189.91,189.87,15.02825116]
[1735608265969,6.2906,189.91,189.88,0.39390152]
[1735608266288,32.122384,189.99,189.88,0.39390152]
[1735608266495,33.10942949,189.99,189.88,15.42215268]
[1735608267090,8.3455,189.99,189.89,15.02825116]
[1735608267267,8.3455,189.99,189.9,15.42194101]
[1735608267694,8.3455,189.99,189.94,20.0]
[1735608268486,8.3455,189.99,189.93,20.0]
[1735608268694,8.3455,189.99,189.89,15.42184862]
[1735608268891,8.3455,189.99,189.9,15.02825116]
[1735608269189,8.3455,189.99,189.91,0.39366943]
[1735608269711,8.3455,189.99,189.92,20.0]
[1735608270209,8.3455,189.99,189.91,0.39366943]
[1735608270210,8.3455,189.99,189.91,35.42192059]
[1735608270708,8.3455,189.99,189.94,20.0]
[1735608271004,8.3455,189.99,189.83,151.74]
[1735608271005,20.0,189.9,189.67,169.42758767]
[1735608271172,6.2906,189.85,189.72,15.02825116]
[1735608271489,0.9878237,189.84,189.71,35.02825116]
[1735608271691,0.9878237,189.84,189.7,15.02825116]
[1735608271871,2.0549,189.83,189.7,15.02825116]
[1735608272271,2.0549,189.83,189.73,15.02825116]
[1735608273694,0.98778098,189.82,189.71,15.42374577]
[1735608273887,0.98778098,189.82,189.7,15.02825116]
[1735608274080,0.98778098,189.82,189.71,15.02825116]
[1735608274281,0.98778098,189.82,189.71,24.07742972]
[1735608274489,20.98778098,189.82,189.69,24.07742972]
[1735608274689,20.98778098,189.82,189.68,24.07742972]
[1735608274897,20.98778098,189.82,189.67,24.07742972]
[1735608274898,23.776884,189.81,189.67,24.07742972]
[1735608275102,23.776884,189.81,189.66,24.07742972]
[1735608275103,0.98812184,189.8,189.66,24.07742972]
[1735608275979,0.98812184,189.8,189.68,20.0]
[1735608276678,20.0,189.78,189.66,0.39602893]
[1735608276873,6.1626,189.76,189.63,24.47362123]
[1735608277079,0.98831847,189.75,189.63,24.47362123]
[1735608277297,0.98831847,189.75,189.63,0.39619151]
[1735608277686,6.1626,189.76,189.66,24.07742972]
[1735608278905,6.1626,189.76,189.65,47.85431372]
[1735608279712,6.1626,189.76,189.66,0.39615137]
[1735608280312,6.1626,189.76,189.64,0.39639252]
[1735608280313,0.98817427,189.75,189.64,0.39639252]
[1735608281497,0.98817427,189.75,189.6,0.39652149]
[1735608281680,20.0,189.73,189.61,24.07742972]
[1735608281881,0.98845768,189.72,189.61,24.07742972]
[1735608282313,20.0,189.71,189.6,24.47395121]
[1735608282599,0.98855107,189.7,189.59,24.07742972]
[1735608283202,0.98855107,189.7,189.58,44.07742972]
[1735608283601,0.98855107,189.7,189.58,24.07742972]
[1735608285181,0.98855107,189.7,189.57,24.07742972]
[1735608285502,0.98855107,189.7,189.58,24.07742972]
[1735608285998,0.98855107,189.7,189.62,24.07742972]
[1735608286202,2.1359,189.72,189.63,24.07742972]
[1735608286675,22.1359,189.72,189.63,24.07742972]
[1735608286879,2.1359,189.72,189.63,24.07742972]
[1735608287095,2.1359,189.72,189.64,24.07742972]
[1735608288278,2.1359,189.72,189.65,24.07742972]
[1735608288886,6.1626,189.76,189.67,24.07742972]
[1735608289086,6.1626,189.76,189.68,24.07742972]
[1735608290504,6.1626,189.76,189.69,24.07742972]
[1735608291504,6.1626,189.76,189.68,24.07742972]
[1735608293105,6.1626,189.76,189.69,24.47328529]
[1735608293298,6.1626,189.76,189.69,0.39585557]
[1735608293789,6.1626,189.76,189.69,24.47328529]
[1735608294304,6.1626,189.76,189.69,15.44784573]
[1735608294687,6.1626,189.76,189.69,0.39585557]
[1735608296401,20.0,189.72,189.56,2.0081]
[1735608296599,6.4615,189.7,189.58,15.05199016]
[1735608296803,22.1485,189.67,189.57,0.39688304]
[1735608297013,22.1485,189.67,189.55,15.05199016]
[1735608297014,0.98865663,189.66,189.55,15.05199016]
[1735608297183,0.98865663,189.66,189.54,15.44909512]
[1735608298206,0.98865663,189.66,189.54,24.51820475]
[1735608298811,20.0,189.65,189.54,24.51820475]
[1735608299193,20.98875851,189.65,189.54,24.51820475]
[1735608299695,0.98875851,189.65,189.54,0.39710496]
[1735608299901,0.98875851,189.65,189.52,24.12109979]
[1735608301311,0.98875851,189.65,189.51,24.12109979]
[1735608301507,0.98875851,189.65,189.52,0.39760967]
[1735608301713,0.98875851,189.65,189.52,24.51870946]
[1735608302316,0.98875851,189.65,189.52,0.39760967]
[1735608302502,20.0,189.61,189.5,24.12109979]
[1735608302705,20.98901507,189.6,189.49,37.71152161]
[1735608303408,20.98901507,189.6,189.49,0.39782182]
[1735608303611,20.98901507,189.6,189.46,0.39787655]
[1735608303791,2.1485,189.59,189.46,0.39787655]
[1735608303996,0.9892788,189.58,189.46,0.39787655]
[1735608304714,23.776884,189.57,189.44,24.12109979]
[1735608304891,0.98938233,189.56,189.44,24.12109979]
[1735608305092,0.98938233,189.56,189.43,24.51951589]
[1735608305093,6.4855,189.55,189.43,24.51951589]
[1735608305295,0.98935072,189.54,189.43,0.3984161]
[1735608305494,20.0,189.52,189.41,24.12109979]
[1735608305728,20.0,189.52,189.41,44.12109979]
[1735608305918,20.0,189.52,189.41,24.12109979]
[1735608306208,20.0,189.52,189.4,24.12109979]
[1735608306516,20.0,189.52,189.41,0.39871939]
[1735608306816,0.98946363,189.51,189.41,0.39871939]
[1735608307194,0.98946363,189.51,189.34,19.3219]
[1735608307195,0.98946363,189.51,189.38,24.51992694]
[1735608307396,0.98946363,189.51,189.38,0.39882715]
[1735608307617,2.0234,189.5,189.38,0.39882715]
[1735608307918,0.98969878,189.49,189.38,0.39882715]
[1735608308314,2.0234,189.5,189.42,24.12109979]
[1735608308497,8.5089,189.55,189.44,24.12109979]
[1735608308819,20.0,189.52,189.43,24.51952119]
[1735608308998,20.0,189.52,189.37,23.776884]
[1735608308999,0.9893957,189.51,189.4,24.12109979]
[1735608309196,0.9893957,189.51,189.38,24.51968288]
[1735608309400,0.9893957,189.51,189.38,24.12109979]
[1735608310107,3.6276957,189.51,189.37,24.12109979]
[1735608310516,20.0,189.47,189.37,24.12109979]
[1735608311019,20.0,189.47,189.38,24.12109979]
[1735608311608,20.0,189.47,189.37,24.12109979]
[1735608311801,20.0,189.47,189.38,24.520239]
[1735608312002,20.0,189.47,189.38,0.39913921]
[1735608313614,20.0,189.47,189.37,24.12109979]
[1735608313615,0.98971923,189.46,189.37,24.12109979]
[1735608313811,0.98978454,189.46,189.36,24.52032994]
[1735608314010,0.98978454,189.46,189.31,13.2052]
[1735608314011,2.1382,189.45,189.34,24.12109979]
[1735608314217,0.98986817,189.44,189.34,24.12109979]
[1735608314415,3.12806739,189.45,189.34,24.12109979]
[1735608314618,2.1382,189.45,189.35,24.12109979]
[1735608315019,2.1382,189.45,189.37,24.12109979]
[1735608315225,2.1382,189.45,189.36,24.52043765]
[1735608315424,2.1382,189.45,189.36,0.39933786]
[1735608315730,2.1382,189.45,189.35,24.12109979]
[1735608316108,3.12799027,189.45,189.35,24.12109979]
[1735608316404,2.1382,189.45,189.35,24.12109979]
[1735608317424,3.12799819,189.45,189.35,24.12109979]
[1735608318039,3.12799819,189.45,189.34,24.52040353]
[1735608318324,3.12799819,189.45,189.34,15.50542128]
[1735608318830,2.1382,189.45,189.35,15.10611754]
[1735608319837,2.1382,189.45,189.38,15.10611754]
[1735608320134,2.1382,189.45,189.36,0.39938865]
[1735608320438,3.12799715,189.45,189.35,15.10611754]
[1735608320811,3.12799715,189.45,189.34,15.50550354]
[1735608321336,2.1382,189.45,189.35,15.10611754]
[1735608321936,2.1382,189.45,189.37,15.10611754]
[1735608322122,2.1382,189.45,189.38,15.50521319]
[1735608323006,6.4855,189.5,189.4,15.10611754]
[1735608323007,8.551,189.5,189.4,15.10611754]
[1735608323214,8.551,189.5,189.42,15.10611754]
[1735608323414,8.551,189.5,189.43,15.50477009]
[1735608323932,6.4855,189.5,189.45,15.10611754]
[1735608324118,8.1422,189.55,189.47,15.10611754]
[1735608324320,8.1422,189.55,189.49,15.10611754]
[1735608324538,8.1422,189.55,189.46,0.39832254]
[1735608324539,8.1422,189.55,189.47,15.10611754]
[1735608325334,8.1422,189.55,189.48,15.10611754]
[1735608325737,8.1422,189.55,189.46,0.39832254]
[1735608325934,20.0,189.52,189.41,15.5042787]
[1735608326438,20.0,189.52,189.43,15.10611754]
[1735608326852,20.0,189.52,189.42,15.10611754]
[1735608327421,20.0,189.52,189.43,0.39857383]
[1735608328321,20.0,189.52,189.44,15.10611754]
[1735608328637,20.0,189.52,189.43,0.39834399]
[1735608330911,8.1422,189.55,189.45,15.10611754]
[1735608331117,8.1422,189.55,189.47,15.10611754]
[1735608332338,8.1422,189.55,189.46,15.10611754]
[1735608332540,8.1422,189.55,189.44,15.10611754]
[1735608332727,8.1422,189.55,189.45,0.39829028]
[1735608332928,20.0,189.52,189.42,15.10611754]
[1735608333920,20.0,189.52,189.42,0.3986398]
[1735608334333,20.0,189.52,189.42,15.50475734]
[1735608334838,20.0,189.52,189.43,15.10611754]
[1735608335035,20.0,189.52,189.44,0.39851085]
[1735608340847,8.1422,189.55,189.47,15.10611754]
[1735608341052,8.1422,189.55,189.48,15.50407597]
[1735608341257,8.1422,189.55,189.49,15.10611754]
[1735608341435,8.1422,189.55,189.45,28.30211754]
[1735608341436,6.0972,189.59,189.5,15.5038675]
[1735608341745,6.0972,189.59,189.52,15.10611754]
[1735608341949,6.0972,189.59,189.53,0.39750789]
[1735608342149,6.0972,189.59,189.54,15.10611754]
[1735608342750,2.0715,189.6,189.54,15.10611754]
[1735608343053,2.0715,189.6,189.55,0.39728752]
[1735608343258,6.0972,189.64,189.55,15.50340506]
[1735608344157,6.0972,189.64,189.55,0.39728752]
[1735608347253,0.98871862,189.63,189.52,15.50334646]
[1735608347554,20.0,189.61,189.52,0.39722892]
[1735608352864,0.98890068,189.63,189.55,23.776884]
[1735608353070,6.0972,189.64,189.59,15.10611754]
[1735608353253,6.0972,189.64,189.6,0.39696127]
[1735608354168,8.5125,189.69,189.6,15.50307881]
[1735608355366,8.5125,189.69,189.6,0.39696127]
[1735608355559,8.5125,189.69,189.59,0.3969073]
[1735608356744,0.98856148,189.68,189.59,0.3969073]
[1735608356956,0.98856148,189.68,189.57,0.39711411]
[1735608357156,0.98856148,189.68,189.57,15.50323165]
[1735608358663,0.98856148,189.68,189.57,0.39711411]
[1735608362971,0.98856148,189.68,189.57,24.17399811]
[1735608363154,0.98856375,189.68,189.57,15.50323165]
[1735608363344,0.98856375,189.68,189.57,0.39711411]
[1735608363345,20.0,189.66,189.57,0.39711411]
[1735608363550,0.98873466,189.65,189.55,0.39726101]
[1735608363752,20.0,189.61,189.52,0.39738895]
[1735608364871,20.0,189.61,189.51,0.39759618]
[1735608367860,20.0,189.61,189.5,15.50372259]
[1735608368895,20.0,189.61,189.5,0.39760505]
[1735608369175,20.0,189.61,189.5,14.92372259]
[1735608370887,20.0,189.61,189.49,23.776884]
[1735608371092,6.3049,189.59,189.47,15.10611754]
[1735608371261,2.0968,189.58,189.48,23.776884]
[1735608371661,2.0968,189.58,189.44,15.10611754]
[1735608371662,20.0,189.56,189.44,15.10611754]
[1735608372099,0.98927833,189.55,189.43,15.10611754]
[1735608372681,0.98930803,189.55,189.44,23.776884]
[1735608372876,20.0,189.56,189.44,23.776884]
[1735608373185,2.0968,189.53,189.41,15.10611754]
[1735608373479,3.0862416,189.53,189.41,15.10611754]
[1735608373658,3.0862416,189.53,189.42,15.10611754]
[1735608374380,3.0862416,189.53,189.35,144.5132]
[1735608374381,3.0862416,189.53,189.44,15.10611754]
[1735608374582,2.0968,189.53,189.45,15.10611754]
[1735608376785,2.0968,189.53,189.47,15.10611754]
[1735608377101,2.0968,189.53,189.48,15.10611754]
[1735608377591,2.0968,189.53,189.47,15.10611754]
[1735608377777,2.0968,189.53,189.46,15.10611754]
[1735608378991,2.0968,189.53,189.45,23.776884]
[1735608378992,2.0968,189.53,189.45,15.10611754]
[1735608379986,2.0968,189.53,189.44,15.10611754]
[1735608381490,2.0968,189.53,189.45,15.10611754]
[1735608381677,2.0968,189.53,189.44,15.10611754]
[1735608384194,2.0968,189.53,189.45,15.10611754]
[1735608384497,2.0968,189.53,189.46,15.10611754]
[1735608385302,2.0968,189.53,189.47,15.10611754]
[1735608385699,2.0968,189.53,189.46,15.10611754]
[1735608386400,2.0968,189.53,189.47,15.10611754]
[1735608387307,2.0968,189.53,189.46,15.10611754]
[1735608387611,2.0968,189.53,189.47,15.10611754]
[1735608388498,2.0968,189.53,189.49,15.10611754]
[1735608388706,6.3049,189.54,189.49,15.10611754]
[1735608389081,6.3049,189.54,189.5,15.10611754]
[1735608389482,6.3049,189.54,189.49,15.10611754]
[1735608390225,6.3049,189.54,189.48,15.10611754]
[1735608391807,6.3049,189.54,189.49,15.10611754]
[1735608392106,6.3049,189.54,189.48,15.10611754]
[1735608392484,6.3049,189.54,189.47,15.10611754]
[1735608392883,6.3049,189.54,189.46,15.10611754]
[1735608393082,6.3049,189.54,189.45,15.10611754]
[1735608396108,6.3049,189.54,189.46,15.10611754]
[1735608399786,6.3049,189.54,189.47,15.10611754]
[1735608399993,6.3049,189.54,189.49,15.10611754]
[1735608400293,6.3049,189.54,189.47,15.10611754]
[1735608400490,6.3049,189.54,189.46,15.10611754]
[1735608402283,6.3049,189.54,189.46,9.65626768]
[1735608402710,6.3049,189.54,189.47,9.65626768]
[1735608404819,6.3049,189.54,189.4,15.84]
[1735608405010,6.3049,189.54,189.44,9.65626768]
[1735608405525,6.3049,189.54,189.45,9.65626768]
[1735608405704,6.3049,189.54,189.47,9.65626768]
[1735608406404,6.27908209,189.54,189.47,9.65626768]
[1735608406604,6.27908209,189.54,189.48,9.65626768]
[1735608406824,6.27908209,189.54,189.47,9.65626768]
[1735608407834,6.27908209,189.54,189.46,9.65626768]
[1735608408008,6.27908209,189.54,189.45,9.65626768]
[1735608409402,6.27908209,189.54,189.46,9.65626768]
[1735608411410,6.27908209,189.54,189.48,9.65626768]
[1735608412133,6.27908209,189.54,189.47,9.65626768]
[1735608412426,6.27908209,189.54,189.43,23.776884]
[1735608412643,6.27908209,189.54,189.43,9.65626768]
[1735608413246,6.27908209,189.54,189.45,9.65626768]
[1735608414552,6.27908209,189.54,189.47,9.65626768]
[1735608414845,6.27908209,189.54,189.41,13.1982]
[1735608415149,6.27908209,189.54,189.46,9.65626768]
[1735608416419,6.27908209,189.54,189.42,23.776884]
[1735608416743,7.26843773,189.54,189.43,9.65626768]
[1735608417743,7.26843773,189.54,189.44,9.65626768]
[1735608418414,7.26843773,189.54,189.47,9.65626768]
[1735608418642,6.27908209,189.54,189.48,9.65626768]
[1735608420029,6.27908209,189.54,189.38,15.84]
[1735608420030,6.27908209,189.54,189.42,20.0]
[1735608420241,6.27908209,189.54,189.46,9.65626768]
[1735608420733,6.27908209,189.54,189.48,9.65626768]
[1735608422351,6.27908209,189.54,189.46,9.65626768]
[1735608422554,6.27908209,189.54,189.44,9.65626768]
[1735608422935,6.27908209,189.54,189.45,9.65626768]
[1735608423458,6.27908209,189.54,189.46,9.65626768]
[1735608423754,6.27908209,189.54,189.45,9.65626768]
[1735608424155,6.27908209,189.54,189.47,9.65626768]
[1735608424522,6.27908209,189.54,189.46,9.65626768]
[1735608425058,6.27908209,189.54,189.47,9.65626768]
[1735608425236,6.27908209,189.54,189.45,9.65626768]
[1735608427229,6.27908209,189.54,189.46,9.65626768]
[1735608428845,6.27908209,189.54,189.45,9.65626768]
[1735608429226,0.98938206,189.53,189.44,9.65626768]
[1735608429938,6.27908209,189.54,189.45,9.65626768]
[1735608430247,7.26837582,189.54,189.45,9.65626768]
[1735608431746,20.0,189.51,189.45,9.65626768]
[1735608431926,1.9926,189.5,189.44,9.65626768]
[1735608432941,1.9926,189.5,189.43,9.65626768]
[1735608433143,2.98210436,189.5,189.42,9.65626768]
[1735608433343,2.98210436,189.5,189.41,9.65626768]
[1735608433945,1.9926,189.5,189.43,9.65626768]
[1735608434340,1.9926,189.5,189.44,9.65626768]
[1735608435753,1.9926,189.5,189.39,23.776884]
[1735608435754,1.9926,189.5,189.43,9.65626768]
[1735608447176,20.0,189.49,189.43,9.65626768]
[1735608447380,20.0,189.49,189.41,9.65626768]
[1735608447552,0.98961119,189.48,189.41,9.65626768]
[1735608448182,26.4986,189.47,189.37,9.65626768]
[1735608448396,0.98981982,189.46,189.36,9.65626768]
[1735608448819,2.1804,189.45,189.35,9.65626768]
[1735608448987,0.9898904,189.44,189.35,9.65626768]
[1735608449372,20.0,189.43,189.35,9.65626768]
[1735608451213,20.0,189.43,189.36,9.65626768]
[1735608452612,20.0,189.43,189.35,9.65626768]
[1735608452896,20.0,189.39,189.26,13.2091]
[1735608453111,0.99018407,189.38,189.3,9.65626768]
[1735608453316,2.1804,189.37,189.29,9.65626768]
[1735608453491,0.99026775,189.36,189.28,9.65626768]
[1735608454301,2.1804,189.37,189.31,9.65626768]
[1735608454900,2.1804,189.37,189.32,9.65626768]
[1735608455295,2.1804,189.37,189.31,9.65626768]
[1735608455510,2.1804,189.37,189.34,9.65626768]
[1735608455716,8.6481,189.42,189.35,9.65626768]
[1735608456025,8.6481,189.42,189.34,9.65626768]
[1735608456407,0.99001201,189.41,189.34,9.65626768]